[Event "Turkish Super League 2019"]
[Site "Konya"]
[Date "2019.07.27"]
[Round "12"]
[White "Yaran, Siar"]
[Black "Demircioglu, Emre"]
[Result "1/2-1/2"]
[ECO "B31"]
[WhiteElo "2197"]
[BlackElo "2242"]
[Annotator "NA"]
[PlyCount "164"]
[EventDate "2019.07.17"]
[EventType "team-tourn"]
[EventCountry "TUR"]
[SourceTitle "playchess.com"]
[Source "ChessBase"]
[SourceQuality "1"]
[TimeControl "40/5400+30:1800+30"]

1. e4 c5 2. Na3 g6 3. Nf3 Bg7 4. c3 Nf6 5. e5 Nd5 6. d4 cxd4 7. Qxd4 Nc7 8. Qh4 h6 9. Qg3 Nc6 10. Bd3 d6 11. exd6 Qxd6 12. Qxd6 exd6 13. Nc4 d5 14. Nd6+ Ke7 15. Nxc8+ Raxc8 16. Be3 Ne6 17. Rd1 Rhd8 18. O-O d4 19. cxd4 Ncxd4 20. Nxd4 Nxd4 21. Rfe1 Kf8 22. Kf1 b6 23. Rd2 Ne6 24. Red1 Nc5 25. Bc2 Rxd2 26. Rxd2 Ne6 27. Ke2 h5 28. Ba4 Rc7 29. a3 Ke7 30. Bb5 Be5 31. g3 f5 32. f4 Bf6 33. b4 Nd8 34. Bd4 {[%emt 1:45:20]} Bxd4 {[%emt 1:41:27]} 35. Rxd4 {[%emt 0:00:30]} Ne6 {[%emt 0:00:30]} 36. Rc4 {[%emt 0:00:30]} Rxc4 {[%emt 0:00:30]} 37. Bxc4 {[%emt 0:00:30]} Nf8 {[%emt 0:02:52]} 38. Kd3 {[%emt 0:00:09]} Nd7 {[%emt 0:01:22]} 39. Kd4 {[%emt 0:01:29]} Nf6 {[%emt 0:00:31]} 40. Bd5 {[%emt 0:00:00]} Ng4 {[%emt 0:00:00]} 41. h3 {[%emt 0:09:02]} Nf6 {[%emt 0:02:18]} 42. Bc4 {[%emt 0:11:53]} Ne4 {[%emt 0:11:30]} 43. g4 {[%emt 0:00:03]} hxg4 {[%emt 0:00:00]} 44. hxg4 {[%emt 0:00:02]} Nd6 {[%emt 0:00:00]} 45. gxf5 {[%emt 0:02:51]} Nxf5+ {[%emt 0:03:38]} 46. Ke5 {[%emt 0:00:11]} Nd6 {[%emt 0:02:09]} 47. Bf1 {[%emt 0:04:03]} Nf7+ {[%emt 0:02:52]} 48. Kd5 {[%emt 0:00:05]} g5 {[%emt 0:01:06]} 49. fxg5 {[%emt 0:00:03]} Nxg5 {[%emt 0:00:21]} 50. Kc6 {[%emt 0:00:03]} Kd8 {[%emt 0:08:38]} 51. Kb7 {[%emt 0:00:47]} Ne4 {[%emt 0:00:17]} 52. Bd3 {[%emt 0:04:57]} Nd6+ {[%emt 0:00:30]} 53. Kxa7 {[%emt 0:00:30]} Kc7 {[%emt 0:00:30]} 54. a4 {[%emt 0:00:30]} Nc8+ {[%emt 0:00:00]} 55. Ka6 {[%emt 0:00:00]} Nd6 {[%emt 0:00:00]} 56. Bc2 {[%emt 0:03:45]} Nc8 {[%emt 0:00:15]} 57. Be4 {[%emt 0:00:45]} Ne7 {[%emt 0:00:30]} 58. Bg2 {[%emt 0:00:30]} Nc8 {[%emt 0:00:30]} 59. Bd5 {[%emt 0:00:00]} Ne7 {[%emt 0:00:18]} 60. Be4 {[%emt 0:00:00]} Nc8 {[%emt 0:00:00]} 61. Bd5 {[%emt 0:01:13]} Ne7 {[%emt 0:00:19]} 62. Be6 {[%emt 0:00:07]} Nc6 {[%emt 0:00:50]} 63. b5 {[%emt 0:00:06]} Nd4 {[%emt 0:00:45]} 64. Bg4 {[%emt 0:01:26]} Nb3 {[%emt 0:00:24]} 65. Ka7 {[%emt 0:00:35]} Nc5 {[%emt 0:00:18]} 66. Bd1 {[%emt 0:00:06]} Nb7 {[%emt 0:00:30]} 67. Bb3 {[%emt 0:00:00]} Nc5 {[%emt 0:00:01]} 68. Bc2 {[%emt 0:00:22]} Nb7 {[%emt 0:00:15]} 69. Bd1 {[%emt 0:01:37]} Nc5 {[%emt 0:00:06]} 70. a5 {[%emt 0:00:33]} bxa5 {[%emt 0:00:09]} 71. b6+ {[%emt 0:00:00]} Kd6 {[%emt 0:00:22]} 72. Bc2 {[%emt 0:00:39]} Kc6 {[%emt 0:00:14]} 73. Ba4+ {[%emt 0:00:34]} Kd6 {[%emt 0:00:13]} 74. Bb5 {[%emt 0:00:00]} Ke7 {[%emt 0:00:39]} 75. Kb8 {[%emt 0:00:57]} Kd8 {[%emt 0:00:06]} 76. Ka7 {[%emt 0:00:33]} Kc8 {[%emt 0:00:40]} 77. Bc6 {[%emt 0:00:11]} Kd8 {[%emt 0:00:00]} 78. Bb5 {[%emt 0:00:40]} Kc8 {[%emt 0:00:18]} 79. Be8 {[%emt 0:00:19]} Kd8 {[%emt 0:00:05]} 80. Bc6 {[%emt 0:00:30]} Kc8 {[%emt 0:00:00]} 81. Ka8 {[%emt 0:00:12]} Kd8 {[%emt 0:00:00]} 82. Kb8 {[%emt 0:00:08]} a4 {[%emt 0:00:20]} 1/2-1/2

[Event "Turkish Super League 2019"]
[Site "Konya"]
[Date "2019.07.27"]
[Round "12"]
[White "Akdogan, Alperen"]
[Black "Ozer, Omer Faruk"]
[Result "1/2-1/2"]
[ECO "E06"]
[WhiteElo "2193"]
[BlackElo "2369"]
[Annotator "NA"]
[PlyCount "103"]
[EventDate "2019.07.17"]
[EventType "team-tourn"]
[EventCountry "TUR"]
[SourceTitle "playchess.com"]
[Source "ChessBase"]
[SourceQuality "1"]
[TimeControl "40/5400+30:1800+30"]

1. d4 Nf6 2. Nf3 e6 3. c4 b6 4. g3 c6 5. Bg2 Be7 6. O-O O-O 7. Nbd2 d5 8. Qc2 Bb7 9. e4 Na6 10. e5 Nd7 11. cxd5 Nb4 12. Qb3 cxd5 13. a3 Nc6 14. Re1 a5 15. Nf1 a4 16. Qd1 b5 17. h4 Na5 18. Rb1 Rc8 19. Bg5 h6 20. Bf4 Re8 21. Ne3 Nb3 22. h5 Nf8 23. Bf1 b4 24. Bd3 bxa3 25. bxa3 Rc3 26. Bb5 Bc6 27. Bxc6 Rxc6 28. Nd2 Nxd4 29. Bxh6 Nf5 30. Qxa4 Qa8 31. Qxa8 Rxa8 32. Nxf5 exf5 33. Be3 Ne6 34. Nf3 Rc7 {[%emt 1:45:36]} 35. Rec1 {[%emt 1:42:17]} Rd7 {[%emt 0:00:30]} 36. a4 {[%emt 0:00:30]} d4 {[%emt 0:00:15]} 37. Bd2 {[%emt 0:03:22]} Rxa4 {[%emt 0:00:30]} 38. Rb8+ {[%emt 0:00:00]} Rd8 {[%emt 0:00:40]} 39. Rxd8+ {[%emt 0:01:16]} Bxd8 {[%emt 0:00:30]} 40. Kf1 {[%emt 0:00:00]} Kh7 {[%emt 0:00:00]} 41. Rb1 {[%emt 0:11:05]} Ra7 {[%emt 0:02:29]} 42. Ke2 {[%emt 0:10:06]} Rd7 {[%emt 0:07:30]} 43. Rb5 {[%emt 0:03:55]} Be7 {[%emt 0:03:30]} 44. Bb4 {[%emt 0:03:17]} Bxb4 {[%emt 0:09:27]} 45. Rxb4 {[%emt 0:00:30]} Kh6 {[%emt 0:00:00]} 46. Kd3 {[%emt 0:01:36]} Kxh5 {[%emt 0:01:37]} 47. Nxd4 {[%emt 0:03:40]} f4 {[%emt 0:03:40]} 48. gxf4 {[%emt 0:01:01]} Kg4 {[%emt 0:00:30]} 49. Ke4 {[%emt 0:00:17]} Nxd4 {[%emt 0:02:06]} 50. Rxd4 {[%emt 0:00:30]} Rxd4+ {[%emt 0:00:30]} 51. Kxd4 {[%emt 0:00:30]} Kxf4 {[%emt 0:00:30]} 52. Kd5 {[%emt 0:00:30]} 1/2-1/2

[Event "Turkish Super League 2019"]
[Site "Konya"]
[Date "2019.07.27"]
[Round "12"]
[White "Karagollu, Ahmet"]
[Black "Safarli, Eltaj"]
[Result "1/2-1/2"]
[ECO "B51"]
[WhiteElo "2135"]
[BlackElo "2608"]
[Annotator "ChessBase"]
[PlyCount "113"]
[EventDate "2019.07.17"]
[EventType "team-tourn"]
[EventCountry "TUR"]
[SourceTitle "playchess.com"]
[Source "ChessBase"]
[SourceQuality "1"]
[TimeControl "40/5400+30:1800+30"]

1. e4 c5 2. Nf3 Nc6 3. Bb5 d6 4. Bxc6+ bxc6 5. O-O Bg4 6. h3 Bh5 7. Re1 e6 8. d3 Nf6 9. Nbd2 Be7 10. Nf1 Nd7 11. Ng3 Bg6 12. e5 d5 13. Ne2 a5 14. a4 Nb6 15. Nf4 c4 16. dxc4 Nxc4 17. b3 Nb6 18. Nd4 Qd7 19. Bd2 c5 20. Nxg6 hxg6 21. Nb5 Rh5 22. Re2 Nc8 23. Qe1 Na7 24. c4 Nc6 25. cxd5 exd5 26. e6 fxe6 27. Rxe6 Kf7 28. Re3 d4 29. Re4 Kg8 30. Qe2 d3 31. Qe3 Bg5 32. f4 Bf6 33. Re1 Rd5 34. Kh2 Nb4 35. Qf3 Rf8 36. Rd1 g5 37. Nc3 Rd4 38. Nb5 Rd5 39. Nc3 Rf5 40. Nb5 Be5 {[%emt 1:09:00]} 41. g3 {[%emt 1:49:30]} Nc6 {[%emt 0:33:30]} 42. Bc1 {[%emt 0:03:30]} gxf4 {[%emt 0:03:30]} 43. g4 {[%emt 0:00:30]} R5f6 {[%emt 0:00:30]} 44. Rxd3 {[%emt 0:00:30]} Bd4 {[%emt 0:08:30]} 45. Bb2 {[%emt 0:07:30]} Qd5 {[%emt 0:01:30]} 46. Bxd4 {[%emt 0:02:03]} cxd4 {[%emt 0:01:30]} 47. Nc7 {[%emt 0:04:53]} Qf7 {[%emt 0:08:13]} 48. Nb5 {[%emt 0:00:40]} Re8 {[%emt 0:02:59]} 49. Rxe8+ {[%emt 0:01:51]} Qxe8 {[%emt 0:00:01]} 50. Nxd4 {[%emt 0:01:50]} Ne5 {[%emt 0:00:30]} 51. Qd5+ {[%emt 0:00:39]} Kh8 {[%emt 0:00:00]} 52. Rc3 {[%emt 0:02:37]} f3 {[%emt 0:03:55]} 53. Nxf3 {[%emt 0:01:01]} Nxf3+ {[%emt 0:03:35]} 54. Rxf3 {[%emt 0:00:30]} Qe2+ {[%emt 0:00:30]} 55. Kg3 {[%emt 0:00:30]} Qe1+ {[%emt 0:00:30]} 56. Kg2 {[%emt 0:00:30]} Qe2+ {[%emt 0:00:30]} 57. Kg3 {[%emt 0:00:00]} 1/2-1/2

[Event "Turkish Super League 2019"]
[Site "Konya"]
[Date "2019.07.27"]
[Round "12"]
[White "Caglar, Ahmet Ata"]
[Black "Dolgun, Can"]
[Result "1/2-1/2"]
[ECO "E61"]
[WhiteElo "2051"]
[BlackElo "2064"]
[Annotator "NA"]
[PlyCount "175"]
[EventDate "2019.07.17"]
[EventType "team-tourn"]
[EventCountry "TUR"]
[SourceTitle "playchess.com"]
[Source "ChessBase"]
[SourceQuality "1"]
[TimeControl "40/5400+30:1800+30"]

1. d4 Nf6 2. c4 g6 3. Nc3 Bg7 4. Bg5 O-O 5. e3 d6 6. Nf3 Na6 7. Be2 Qe8 8. O-O e5 9. Rc1 h6 10. Bh4 g5 11. Bg3 Nh5 12. dxe5 Nxg3 13. hxg3 dxe5 14. Nd2 Be6 15. Qb3 Rb8 16. g4 c6 17. Nde4 Qe7 18. Rfd1 Rfd8 19. Ng3 Qb4 20. Qxb4 Nxb4 21. a3 Na6 22. Nce4 Bf8 23. Nf5 Nc7 24. g3 Ne8 25. Kg2 f6 26. Rh1 Kh7 27. Rh2 Kg6 28. Rhh1 b6 29. Rcd1 Bxf5 30. gxf5+ Kxf5 31. g4+ Ke6 32. Bf3 Rbc8 33. Rxd8 Rxd8 34. Ng3 Nd6 35. b3 Rc8 36. Rd1 a5 37. a4 Nb7 38. Be4 Rd8 39. Rxd8 Nxd8 40. Nf5 Kd7 41. Kf1 Nb7 42. Bc2 Nc5 43. Ke2 Ke6 44. Ng3 Na6 45. Nf5 Kd7 {[%emt 1:49:30]} 46. Kd2 {[%emt 1:39:00]} Kc7 {[%emt 0:00:30]} 47. Bd3 {[%emt 0:05:30]} Bb4+ {[%emt 0:00:30]} 48. Ke2 {[%emt 0:00:30]} Bf8 {[%emt 0:00:30]} 49. Kd2 {[%emt 0:00:30]} Nc5 {[%emt 0:02:30]} 50. Kc3 {[%emt 0:00:30]} Kd7 {[%emt 0:03:30]} 51. Bc2 {[%emt 0:00:30]} Ke6 {[%emt 0:01:30]} 52. Ng3 {[%emt 0:00:30]} Kf7 {[%emt 0:03:30]} 53. Nf5 {[%emt 0:00:30]} Ke6 {[%emt 0:02:30]} 54. Ng3 {[%emt 0:00:30]} Kd7 {[%emt 0:00:00]} 55. Nf5 {[%emt 0:00:00]} Ne6 {[%emt 0:00:00]} 56. Kd2 {[%emt 0:00:00]} Nd8 {[%emt 0:00:30]} 57. Be4 {[%emt 0:01:30]} Nf7 {[%emt 0:00:30]} 58. Bc2 {[%emt 0:01:30]} Ke6 {[%emt 0:00:30]} 59. Be4 {[%emt 0:01:30]} Kd7 {[%emt 0:00:30]} 60. Bc2 {[%emt 0:00:00]} Kc7 {[%emt 0:03:30]} 61. Bd3 {[%emt 0:00:00]} Kb7 {[%emt 0:00:30]} 62. Be4 {[%emt 0:00:30]} Nd8 {[%emt 0:00:30]} 63. Bd3 {[%emt 0:01:30]} Ne6 {[%emt 0:00:00]} 64. Kc2 {[%emt 0:00:30]} Nc5 {[%emt 0:00:00]} 65. Kc3 {[%emt 0:00:30]} Ka6 {[%emt 0:01:30]} 66. Ng3 {[%emt 0:00:30]} Ka7 {[%emt 0:00:53]} 67. Nf5 {[%emt 0:00:30]} Kb8 {[%emt 0:00:28]} 68. Ng3 {[%emt 0:00:30]} Nb7 {[%emt 0:00:19]} 69. Nf5 {[%emt 0:00:00]} Nc5 {[%emt 0:01:02]} 70. Ng3 {[%emt 0:00:00]} Na6 {[%emt 0:00:04]} 71. Nf5 {[%emt 0:00:30]} Bb4+ {[%emt 0:00:51]} 72. Kc2 {[%emt 0:00:00]} Bf8 {[%emt 0:00:55]} 73. Kd2 {[%emt 0:00:00]} Kc7 {[%emt 0:01:01]} 74. Bc2 {[%emt 0:01:30]} Kd7 {[%emt 0:02:06]} 75. Be4 {[%emt 0:00:00]} Nc5 {[%emt 0:01:31]} 76. Bc2 {[%emt 0:00:00]} Kd8 {[%emt 0:01:08]} 77. Ng3 {[%emt 0:00:30]} Kc7 {[%emt 0:00:05]} 78. Nf5 {[%emt 0:00:00]} b5 {[%emt 0:00:19]} 79. cxb5 {[%emt 0:08:00]} cxb5 {[%emt 0:00:01]} 80. Kc3 {[%emt 0:00:30]} Kc6 {[%emt 0:00:45]} 81. Ng3 {[%emt 0:00:30]} bxa4 {[%emt 0:01:12]} 82. bxa4 {[%emt 0:00:30]} Kd5 {[%emt 0:00:05]} 83. f3 {[%emt 0:01:30]} Nd7 {[%emt 0:01:24]} 84. Bb3+ {[%emt 0:00:30]} Kc6 {[%emt 0:00:58]} 85. Bc4 {[%emt 0:00:30]} Nb6 {[%emt 0:01:24]} 86. Bb5+ {[%emt 0:00:30]} Kd6 {[%emt 0:00:26]} 87. Nf5+ {[%emt 0:02:30]} Kc5 {[%emt 0:01:44]} 88. e4 {[%emt 0:00:00]} 1/2-1/2

[Event "Turkish Super League 2019"]
[Site "Konya"]
[Date "2019.07.27"]
[Round "12"]
[White "Aydin, Hakan Arda"]
[Black "Kamer, Kayra"]
[Result "0-1"]
[ECO "B43"]
[WhiteElo "1956"]
[BlackElo "2340"]
[Annotator "NA"]
[PlyCount "94"]
[EventDate "2019.07.17"]
[EventType "team-tourn"]
[EventCountry "TUR"]
[SourceTitle "playchess.com"]
[Source "ChessBase"]
[SourceQuality "1"]
[TimeControl "40/5400+30:1800+30"]

1. e4 {[%emt 0:00:30]} c5 {[%emt 0:00:30]} 2. Nf3 {[%emt 0:00:30]} e6 {[%emt 0:00:30]} 3. d4 {[%emt 0:00:30]} cxd4 {[%emt 0:00:30]} 4. Nxd4 {[%emt 0:00:00]} a6 {[%emt 0:00:00]} 5. Nc3 {[%emt 0:00:00]} b5 {[%emt 0:00:00]} 6. a3 {[%emt 0:00:30]} Bb7 {[%emt 0:00:00]} 7. Be3 {[%emt 0:00:30]} Qc7 {[%emt 0:00:00]} 8. f3 {[%emt 0:03:30]} Nf6 {[%emt 0:00:00]} 9. g4 {[%emt 0:01:30]} h6 {[%emt 0:00:00]} 10. Qe2 {[%emt 0:08:30]} d5 {[%emt 0:01:30]} 11. g5 {[%emt 0:11:30]} hxg5 {[%emt 0:00:30]} 12. Bxg5 {[%emt 0:00:30]} dxe4 {[%emt 0:00:00]} 13. fxe4 {[%emt 0:03:30]} b4 {[%emt 0:00:00]} 14. axb4 {[%emt 0:12:30]} Bxb4 {[%emt 0:00:00]} 15. Bd2 {[%emt 0:00:30]} Bxc3 {[%emt 0:00:00]} 16. Bxc3 {[%emt 0:00:30]} Nxe4 {[%emt 0:00:30]} 17. Ba5 {[%emt 0:00:30]} Qf4 {[%emt 0:00:30]} 18. Bg2 {[%emt 0:07:30]} Qh4+ {[%emt 0:00:00]} 19. Kf1 {[%emt 0:02:30]} Qf6+ {[%emt 0:00:00]} 20. Nf3 {[%emt 0:01:30]} Nd7 {[%emt 0:00:00]} 21. Kg1 {[%emt 0:01:30]} Qxb2 {[%emt 0:00:00]} 22. Rd1 {[%emt 0:02:30]} Rh5 {[%emt 0:00:30]} 23. Be1 {[%emt 0:08:30]} Rc8 {[%emt 0:00:30]} 24. Nd4 {[%emt 0:02:30]} Rg5 {[%emt 0:00:00]} 25. h4 {[%emt 0:04:30]} Ng3 {[%emt 0:00:00]} 26. Bxg3 {[%emt 0:00:30]} Rxg3 {[%emt 0:00:00]} 27. Rh2 {[%emt 0:00:30]} Qb6 {[%emt 0:05:00]} 28. Kh1 {[%emt 0:00:30]} Nf6 {[%emt 0:00:30]} 29. Qe5 {[%emt 0:07:53]} Bxg2+ {[%emt 0:01:30]} 30. Rxg2 {[%emt 0:00:06]} Rxg2 {[%emt 0:00:30]} 31. Kxg2 {[%emt 0:00:28]} Rc5 {[%emt 0:01:30]} 32. Qg3 {[%emt 0:01:48]} Kf8 {[%emt 0:01:30]} 33. Rb1 {[%emt 0:06:48]} Rxc2+ {[%emt 0:00:30]} 34. Nxc2 {[%emt 0:00:10]} Qxb1 {[%emt 0:00:00]} 35. Qd6+ {[%emt 0:04:42]} Kg8 {[%emt 0:00:00]} 36. Ne3 {[%emt 0:02:07]} Qe4+ {[%emt 0:00:00]} 37. Kf2 {[%emt 0:00:22]} Qxh4+ {[%emt 0:00:00]} 38. Ke2 {[%emt 0:00:19]} Qf2+ {[%emt 0:00:00]} 39. Kd3 {[%emt 0:00:25]} Qd2+ {[%emt 0:00:00]} 40. Kxd2 {[%emt 0:00:30]} Ne4+ {[%emt 0:00:00]} 41. Kd3 {[%emt 0:00:00]} Nxd6 {[%emt 0:00:00]} 42. Kc3 {[%emt 0:01:22]} f5 {[%emt 0:00:30]} 43. Kb4 {[%emt 0:00:30]} g5 {[%emt 0:00:00]} 44. Kc5 {[%emt 0:00:00]} Ne4+ {[%emt 0:00:00]} 45. Kb6 {[%emt 0:00:00]} f4 {[%emt 0:00:00]} 46. Nf1 {[%emt 0:00:00]} g4 {[%emt 0:00:00]} 47. Kxa6 {[%emt 0:00:00]} g3 {[%emt 0:00:30]} 0-1

[Event "Turkish Super League 2019"]
[Site "Konya"]
[Date "2019.07.27"]
[Round "12"]
[White "Gurel, Ediz"]
[Black "Firat, Burak"]
[Result "0-1"]
[ECO "B56"]
[WhiteElo "1925"]
[BlackElo "2463"]
[Annotator "ChessBase"]
[PlyCount "92"]
[EventDate "2019.07.17"]
[EventType "team-tourn"]
[EventCountry "TUR"]
[SourceTitle "playchess.com"]
[Source "ChessBase"]
[SourceQuality "1"]
[TimeControl "40/5400+30:1800+30"]

1. e4 c5 2. Nf3 Nc6 3. d4 cxd4 4. Nxd4 Nf6 5. Nc3 d6 6. Nd5 Nxd5 7. exd5 Qa5+ 8. Bd2 Qxd5 9. Nb5 Qe6+ 10. Be2 Qd7 11. c4 Qd8 12. Bc3 a6 13. Nd4 Bd7 14. O-O e6 15. f4 Be7 16. Bf3 O-O 17. Qd2 Re8 18. Rad1 Bf8 19. b3 Rc8 20. Qb2 b5 21. cxb5 Nxd4 22. Bxd4 axb5 23. Bb7 Rb8 24. Bf3 Qa5 25. b4 Qa6 26. Rd3 d5 27. f5 exf5 28. Bxd5 Be6 29. Rg3 g6 30. Bxe6 Qxe6 31. a3 Qd5 32. Bc3 Re4 33. Qf2 Rbe8 34. Qb6 Bd6 35. Rgf3 h5 36. R3f2 Rb8 37. Qa7 Qc6 38. Rf3 Ra8 39. Qf2 Rxa3 40. Qb2 Ra8 41. Rh3 Rae8 42. Qd2 {[%emt 1:44:00]} Re2 {[%emt 1:52:00]} 43. Qg5 {[%emt 0:00:30]} Be7 {[%emt 0:00:00]} 44. Qg3 {[%emt 0:00:30]} h4 {[%emt 0:00:00]} 45. Rxf5 {[%emt 0:01:30]} Bxb4 {[%emt 0:02:30]} 46. Qf3 {[%emt 0:05:30]} Qb6+ {[%emt 0:01:30]} 0-1

[Event "Turkish Super League 2019"]
[Site "Konya"]
[Date "2019.07.28"]
[Round "13"]
[White "Esipenko, Andrey"]
[Black "Injac, Teodora"]
[Result "1-0"]
[ECO "E90"]
[WhiteElo "2621"]
[BlackElo "2305"]
[Annotator "RC"]
[PlyCount "67"]
[EventDate "2019.07.17"]
[EventType "team-tourn"]
[EventCountry "TUR"]
[SourceTitle "playchess.com"]
[Source "ChessBase"]
[SourceQuality "1"]
[TimeControl "40/5400+30:1800+30"]

1. d4 {[%emt 0:00:30]} Nf6 {[%emt 0:00:30]} 2. c4 {[%emt 0:00:00]} g6 {[%emt 0:00:00]} 3. Nc3 {[%emt 0:00:00]} Bg7 {[%emt 0:00:00]} 4. e4 {[%emt 0:00:30]} d6 {[%emt 0:00:00]} 5. h3 {[%emt 0:00:30]} O-O {[%emt 0:01:00]} 6. Be3 {[%emt 0:00:30]} c5 {[%emt 0:03:30]} 7. Nf3 {[%emt 0:00:30]} Qa5 {[%emt 0:01:30]} 8. Bd3 {[%emt 0:00:30]} Nc6 {[%emt 0:07:30]} 9. d5 {[%emt 0:16:30]} Nb4 {[%emt 0:05:30]} 10. Bb1 {[%emt 0:00:30]} b5 {[%emt 0:21:30]} 11. cxb5 {[%emt 0:00:30]} e6 {[%emt 0:09:30]} 12. dxe6 {[%emt 0:03:30]} Bxe6 {[%emt 0:00:30]} 13. O-O {[%emt 0:02:30]} Rfd8 {[%emt 0:04:30]} 14. Qc1 {[%emt 0:28:30]} a6 {[%emt 0:03:30]} 15. bxa6 {[%emt 0:00:30]} Qxa6 {[%emt 0:01:30]} 16. Bh6 {[%emt 0:02:30]} Nd3 {[%emt 0:16:30]} 17. Bxd3 {[%emt 0:00:30]} Qxd3 {[%emt 0:00:30]} 18. Rd1 {[%emt 0:01:30]} Qc4 {[%emt 0:00:30]} 19. Bxg7 {[%emt 0:00:30]} Kxg7 {[%emt 0:00:00]} 20. Ng5 {[%emt 0:00:30]} Qb4 {[%emt 0:06:26]} 21. Nxe6+ {[%emt 0:10:30]} fxe6 {[%emt 0:00:10]} 22. Qe3 {[%emt 0:00:30]} e5 {[%emt 0:07:41]} 23. Rd2 {[%emt 0:00:30]} Qb7 {[%emt 0:03:55]} 24. Rad1 {[%emt 0:00:30]} Ra6 {[%emt 0:01:02]} 25. Qe2 {[%emt 0:00:30]} Qc6 {[%emt 0:03:38]} 26. f4 {[%emt 0:08:30]} exf4 {[%emt 0:00:10]} 27. e5 {[%emt 0:00:30]} Ne8 {[%emt 0:00:37]} 28. exd6 {[%emt 0:00:30]} Ra7 {[%emt 0:00:49]} 29. Qe5+ {[%emt 0:00:30]} Nf6 {[%emt 0:00:30]} 30. Qxf4 {[%emt 0:00:30]} Rad7 {[%emt 0:00:32]} 31. Re1 {[%emt 0:01:30]} Rxd6 {[%emt 0:00:57]} 32. Re7+ {[%emt 0:00:30]} Kf8 {[%emt 0:00:46]} 33. Rde2 {[%emt 0:00:00]} Kg8 {[%emt 0:00:31]} 34. Qh6 {[%emt 0:00:00]} 1-0

[Event "Turkish Super League 2019"]
[Site "Konya"]
[Date "2019.07.28"]
[Round "13"]
[White "Rozum, Ivan"]
[Black "Demircioglu, Emre"]
[Result "1-0"]
[ECO "A49"]
[WhiteElo "2583"]
[BlackElo "2242"]
[Annotator "ChessBase"]
[PlyCount "59"]
[EventDate "2019.07.17"]
[EventType "team-tourn"]
[EventCountry "TUR"]
[SourceTitle "playchess.com"]
[Source "ChessBase"]
[SourceQuality "1"]
[TimeControl "40/5400+30:1800+30"]

1. Nf3 {[%emt 0:02:30]} Nf6 {[%emt 0:00:30]} 2. g3 {[%emt 0:00:30]} g6 {[%emt 0:01:30]} 3. b3 {[%emt 0:00:00]} Bg7 {[%emt 0:00:00]} 4. Bb2 {[%emt 0:00:00]} O-O {[%emt 0:00:00]} 5. Bg2 {[%emt 0:00:00]} d6 {[%emt 0:02:30]} 6. d4 {[%emt 0:00:00]} Nbd7 {[%emt 0:05:30]} 7. O-O {[%emt 0:00:30]} e5 {[%emt 0:01:30]} 8. dxe5 {[%emt 0:01:30]} dxe5 {[%emt 0:01:30]} 9. Nxe5 {[%emt 0:00:30]} Qe7 {[%emt 0:18:30]} 10. Nd3 {[%emt 0:00:30]} Re8 {[%emt 0:05:30]} 11. Re1 {[%emt 0:03:30]} c6 {[%emt 0:09:30]} 12. Nd2 {[%emt 0:06:30]} Nb6 {[%emt 0:01:30]} 13. e4 {[%emt 0:01:30]} Rd8 {[%emt 0:03:30]} 14. Qe2 {[%emt 0:00:30]} h5 {[%emt 0:01:30]} 15. h3 {[%emt 0:00:30]} Be6 {[%emt 0:01:30]} 16. Rad1 {[%emt 0:00:30]} Ne8 {[%emt 0:03:30]} 17. Bxg7 {[%emt 0:00:30]} Nxg7 {[%emt 0:00:30]} 18. f4 {[%emt 0:03:30]} Qd7 {[%emt 0:11:30]} 19. Kh2 {[%emt 0:00:30]} Qd4 {[%emt 0:00:00]} 20. Nf3 {[%emt 0:03:30]} Qc3 {[%emt 0:01:00]} 21. Qf2 {[%emt 0:00:30]} Qf6 {[%emt 0:12:36]} 22. Nc5 {[%emt 0:01:30]} Rxd1 {[%emt 0:00:33]} 23. Rxd1 {[%emt 0:00:00]} Qe7 {[%emt 0:00:27]} 24. a4 {[%emt 0:02:00]} Bc8 {[%emt 0:02:28]} 25. e5 {[%emt 0:05:30]} Bf5 {[%emt 0:01:23]} 26. Ng5 {[%emt 0:03:30]} Ne6 {[%emt 0:05:00]} 27. Ngxe6 {[%emt 0:00:00]} Bxe6 {[%emt 0:00:39]} 28. a5 {[%emt 0:00:00]} Nd5 {[%emt 0:01:48]} 29. c4 {[%emt 0:01:30]} Nb4 {[%emt 0:00:17]} 30. Rd6 {[%emt 0:00:30]} 1-0

[Event "Turkish Super League 2019"]
[Site "Konya"]
[Date "2019.07.28"]
[Round "13"]
[White "Dastan, Muhammed Batuhan"]
[Black "Mchedlishvili, Mikheil"]
[Result "1/2-1/2"]
[ECO "B92"]
[WhiteElo "2565"]
[BlackElo "2571"]
[Annotator "ChessBase"]
[PlyCount "97"]
[EventDate "2019.07.17"]
[EventType "team-tourn"]
[EventCountry "TUR"]
[SourceTitle "playchess.com"]
[Source "ChessBase"]
[SourceQuality "1"]
[TimeControl "40/5400+30:1800+30"]

1. e4 {[%emt 0:02:30]} c5 {[%emt 0:00:30]} 2. Nf3 {[%emt 0:00:00]} d6 {[%emt 0:00:30]} 3. d4 {[%emt 0:00:00]} cxd4 {[%emt 0:00:30]} 4. Nxd4 {[%emt 0:00:30]} Nf6 {[%emt 0:00:30]} 5. Nc3 {[%emt 0:00:00]} a6 {[%emt 0:00:30]} 6. Be2 {[%emt 0:01:00]} e5 {[%emt 0:01:30]} 7. Nb3 {[%emt 0:01:30]} Be7 {[%emt 0:00:30]} 8. Qd3 {[%emt 0:01:30]} O-O {[%emt 0:06:30]} 9. O-O {[%emt 0:00:30]} Be6 {[%emt 0:00:30]} 10. Nd5 {[%emt 0:02:30]} Nxd5 {[%emt 0:02:30]} 11. exd5 {[%emt 0:00:30]} Bc8 {[%emt 0:00:30]} 12. Be3 {[%emt 0:05:30]} Nd7 {[%emt 0:02:30]} 13. c4 {[%emt 0:11:30]} a5 {[%emt 0:05:30]} 14. Kh1 {[%emt 0:06:30]} Bg5 {[%emt 0:14:30]} 15. Rac1 {[%emt 0:09:30]} b6 {[%emt 0:06:30]} 16. Bg4 {[%emt 0:11:30]} Bxe3 {[%emt 0:06:30]} 17. fxe3 {[%emt 0:02:30]} Nc5 {[%emt 0:01:30]} 18. Nxc5 {[%emt 0:00:30]} bxc5 {[%emt 0:00:30]} 19. Bxc8 {[%emt 0:00:30]} Rxc8 {[%emt 0:01:30]} 20. e4 {[%emt 0:03:30]} Qg5 {[%emt 0:10:30]} 21. Rc2 {[%emt 0:01:30]} a4 {[%emt 0:03:30]} 22. Qh3 {[%emt 0:02:30]} Qe7 {[%emt 0:01:30]} 23. Rc3 {[%emt 0:07:30]} Rb8 {[%emt 0:00:30]} 24. b3 {[%emt 0:00:30]} axb3 {[%emt 0:02:30]} 25. axb3 {[%emt 0:00:00]} Ra8 {[%emt 0:01:30]} 26. Rcf3 {[%emt 0:05:00]} Ra2 {[%emt 0:01:30]} 27. Qg4 {[%emt 0:06:46]} Rfa8 {[%emt 0:10:29]} 28. Qf5 {[%emt 0:00:09]} f6 {[%emt 0:04:19]} 29. h4 {[%emt 0:01:21]} R2a7 {[%emt 0:03:18]} 30. h5 {[%emt 0:02:05]} Qd7 {[%emt 0:02:34]} 31. Qxd7 {[%emt 0:00:30]} Rxd7 {[%emt 0:00:30]} 32. h6 {[%emt 0:01:54]} Rf7 {[%emt 0:00:00]} 33. Kh2 {[%emt 0:02:25]} Raf8 {[%emt 0:02:59]} 34. hxg7 {[%emt 0:03:04]} Kxg7 {[%emt 0:00:07]} 35. Rf5 {[%emt 0:00:57]} Ra8 {[%emt 0:00:52]} 36. R1f3 {[%emt 0:01:59]} Ra2 {[%emt 0:00:06]} 37. Kh3 {[%emt 0:01:29]} Re2 {[%emt 0:01:44]} 38. Rg3+ {[%emt 0:02:02]} Kf8 {[%emt 0:00:45]} 39. Rg4 {[%emt 0:00:04]} Re3+ {[%emt 0:00:14]} 40. Rf3 {[%emt 0:00:00]} Rxf3+ {[%emt 0:00:00]} 41. gxf3 {[%emt 0:00:45]} Rb7 {[%emt 0:03:33]} 42. Rh4 {[%emt 0:01:30]} Kg7 {[%emt 0:04:30]} 43. Rg4+ {[%emt 0:02:30]} Kf7 {[%emt 0:00:30]} 44. Rh4 {[%emt 0:01:30]} Rxb3 {[%emt 0:00:30]} 45. Kg3 {[%emt 0:00:30]} Kg7 {[%emt 0:02:30]} 46. Rg4+ {[%emt 0:00:30]} Kh8 {[%emt 0:07:30]} 47. Rh4 {[%emt 0:00:00]} Kg7 {[%emt 0:04:29]} 48. Rg4+ {[%emt 0:00:00]} Kf8 {[%emt 0:01:31]} 49. Rh4 {[%emt 0:00:30]} 1/2-1/2